bitfinex/quotes_ETHUSD_20240827
["timestamp","ask_amount","ask_price","bid_price","bid_amount"]
[1724752145135,3.0,2676.8,2676.3,7.47282]
[1724752145322,3.73545,2677.1,2676.5,3.73612]
[1724752145636,3.73545,2677.1,2676.5,3.73611]
[1724752146111,7.47094,2677.1,2676.5,3.73611]
[1724752146299,3.73567,2676.9,2676.3,3.81109209]
[1724752146640,0.993844,2677.0,2676.1,6.0942]
[1724752146812,3.73618,2676.6,2675.9,8.461735]
[1724752147012,3.73618,2676.6,2675.9,3.73696]
[1724752147640,7.47235,2676.6,2676.0,3.73684]
[1724752147840,3.73617,2676.6,2675.9,6.23206]
[1724752148011,5.211405,2676.6,2675.9,6.23206]
[1724752148213,3.73626,2676.5,2675.9,9.96903]
[1724752148439,8.947615,2676.6,2676.0,3.7369]
[1724752148614,3.73623,2676.5,2675.9,9.96903]
[1724752149045,4.60086334,2676.5,2675.9,6.23206]
[1724752149355,3.73709,2675.9,2675.3,3.73782]
[1724752149565,6.05259,2675.9,2675.3,3.73782]
[1724752150124,3.73709,2675.9,2675.3,3.7378]
[1724752150326,10.28,2676.1,2675.7,3.73731]
[1724752150567,3.0,2676.0,2675.7,3.73724]
[1724752151735,3.0,2676.0,2675.5,3.7375]
[1724752152133,3.0,2676.0,2675.6,3.73738]
[1724752152425,7.28,2676.1,2675.7,2.2609]
[1724752152626,7.28,2676.1,2675.7,5.99817]
[1724752153032,7.28,2676.1,2674.7,6.73862]
[1724752153033,3.73727,2675.8,2675.2,3.738]
[1724752153228,3.728,2676.0,2675.2,3.738]
[1724752153429,3.73735,2675.7,2675.2,3.738]
[1724752153968,3.73735,2675.7,2675.0,9.73735]
[1724752153969,7.47477,2675.7,2675.0,9.73735]
[1724752154127,3.73735,2675.7,2675.1,3.73808]
[1724752154772,3.73735,2675.7,2675.0,6.598988]
[1724752154970,4.111285,2675.6,2675.0,5.99907]
[1724752155529,3.73764,2675.5,2675.0,2.2609]
[1724752156370,0.373735,2675.6,2675.1,3.73814]
[1724752156579,3.0,2675.6,2675.1,3.73814]
[1724752157191,0.728,2676.0,2675.4,3.73768]
[1724752157362,6.73699,2676.0,2675.4,3.73768]
[1724752157695,3.7372,2675.8,2675.2,3.73791]
[1724752158194,3.7372,2675.8,2675.3,3.73789]
[1724752158704,7.47452,2675.8,2675.2,3.73791]
[1724752158853,4.784612,2675.8,2675.2,3.73791]
[1724752159053,8.521922,2675.8,2675.2,3.73791]
[1724752159275,3.73741,2675.7,2675.2,3.73791]
[1724752160290,4.784702,2675.8,2675.3,3.73788]
[1724752160477,3.73729,2675.8,2675.3,3.73788]
[1724752161091,6.73701,2676.0,2675.5,3.73757]
[1724752161448,3.0,2676.0,2675.5,3.73753]
[1724752161666,6.73679,2676.1,2675.5,3.73753]
[1724752161851,1.51810901,2676.0,2675.5,3.73753]
[1724752162400,5.25506901,2676.0,2675.5,3.73753]
[1724752162598,5.25506901,2676.0,2675.4,2.4504]
[1724752162599,3.0,2675.9,2675.6,3.73743]
[1724752162778,2.32491979,2676.2,2675.7,2.4357]
[1724752162980,0.39052587,2676.2,2676.1,3.73678]
[1724752163224,3.73601,2676.7,2676.2,2.4536]
[1724752163225,1.93439392,2676.7,2676.2,2.4536]
[1724752163373,5.67021392,2676.8,2676.2,6.19016]
[1724752163716,0.39051106,2676.7,2676.3,3.73649]
[1724752164272,0.39051106,2676.7,2676.2,2.4536]
[1724752164471,3.39051106,2676.7,2676.2,3.73663]
[1724752164710,3.0,2676.7,2676.2,3.73663]
[1724752165073,2.32488882,2677.0,2676.5,6.1293]
[1724752165270,0.3904949,2677.0,2676.5,6.1293]
[1724752165571,4.1260149,2677.0,2676.5,2.3932]
[1724752165771,4.73203478,2677.0,2676.5,2.3932]
[1724752166408,0.3904949,2677.0,2676.5,2.3932]
[1724752166610,0.3904949,2677.0,2676.5,6.12941]
[1724752167410,0.3904949,2677.0,2676.5,2.3932]
[1724752167613,7.1260349,2677.0,2676.5,2.3932]
[1724752167823,3.73576,2676.9,2676.1,2.358]
[1724752168109,3.73594,2676.7,2676.1,2.358]
[1724752168319,3.73622,2676.5,2676.1,2.358]
[1724752168522,7.47255,2676.5,2676.1,2.358]
[1724752168675,3.73637,2676.4,2675.8,6.17462]
[1724752168880,3.73622,2676.5,2675.8,6.17462]
[1724752168881,7.47257,2676.5,2675.8,6.17462]
[1724752169104,3.73679,2676.1,2675.5,2.4375]
[1724752169793,3.73679,2676.1,2675.5,6.17511]
[1724752170319,3.73665,2676.2,2675.6,3.73745]
[1724752170993,4.65302772,2676.3,2675.7,3.73732]
[1724752171397,3.0,2676.2,2675.6,3.73745]
[1724752171580,7.11284362,2676.2,2675.6,3.73745]
[1724752173425,3.73682,2676.1,2675.4,3.73763]
[1724752173622,3.71129436,2676.0,2675.4,3.73763]
[1724752173785,3.71129436,2676.0,2675.5,3.7376]
[1724752173983,3.71129436,2676.0,2675.4,7.4753]
[1724752174325,3.71129436,2676.0,2675.5,3.7376]
[1724752174625,3.0,2676.0,2675.5,3.7376]
[1724752175119,6.73692,2676.0,2675.5,3.7376]
[1724752175325,3.0,2676.0,2675.5,3.7376]
[1724752175486,3.0,2676.0,2675.7,3.73727]
[1724752175858,3.0,2676.2,2675.7,6.10645]
[1724752176060,0.673658,2676.1,2675.7,2.3692]
[1724752176354,0.673658,2676.1,2675.6,3.73743]
[1724752176555,3.73692,2676.0,2675.5,3.73753]
[1724752176755,8.67031691,2676.2,2675.6,3.73746]
[1724752177065,3.0,2676.2,2675.7,3.73722]
[1724752177354,6.73665,2676.2,2675.7,3.73722]
[1724752177709,6.73665,2676.2,2675.6,3.73746]
[1724752177710,10.47341,2676.2,2675.6,3.73746]
[1724752177963,10.1557586,2676.2,2675.6,3.73746]
[1724752178158,10.1557586,2676.2,2675.6,3.73739]
[1724752178454,8.67025691,2676.2,2675.6,3.73739]
[1724752178635,4.93360691,2676.2,2675.5,0.07474726]
[1724752178843,3.0,2676.2,2675.9,6.18525]
[1724752179031,3.0,2676.3,2675.9,6.18518]
[1724752179431,4.93360691,2676.3,2675.9,2.4482]
[1724752179648,8.67017691,2676.3,2675.8,3.73719]
[1724752179977,4.93360691,2676.3,2675.8,3.73711]
[1724752180132,3.0,2676.3,2675.9,3.73699]
[1724752180333,4.93607995,2676.3,2675.8,3.73711]
[1724752181045,4.93607995,2676.3,2675.9,3.73698]
[1724752181261,7.28,2676.4,2675.9,3.73698]
[1724752181262,7.28,2676.4,2676.1,2.3616]
[1724752181439,1.93607995,2676.6,2676.3,3.7365]
[1724752181772,5.67188995,2676.8,2676.3,3.7365]
[1724752182128,5.67201995,2676.7,2676.1,9.83493]
[1724752182432,3.73581,2676.8,2676.2,0.983493]
[1724752182433,1.93607995,2676.8,2676.2,0.983493]
[1724752182631,9.21607995,2676.9,2676.5,3.73622]
[1724752182874,7.28,2676.9,2676.5,3.73622]
[1724752183043,7.28,2676.9,2676.5,7.47244]
[1724752183386,2.32653283,2677.2,2676.6,2.32781905]
[1724752183669,1.93607995,2677.3,2677.0,2.3655]
[1724752183883,7.28,2677.6,2677.2,3.73524]
[1724752183884,9.21607995,2677.6,2677.2,3.73524]
[1724752184169,5.67077995,2677.6,2677.0,6.17561227]
[1724752184383,5.67064995,2677.7,2677.0,6.17561227]
[1724752184534,9.40532995,2677.7,2677.1,3.7353]
[1724752184870,3.0,2677.6,2677.1,3.7353]
[1724752185256,1.93525969,2677.8,2677.1,3.7353]
[1724752185257,1.93525969,2677.9,2677.4,3.73486]
[1724752185444,1.93525969,2677.9,2677.0,2.3655]
[1724752185445,2.32564298,2678.0,2677.6,2.2622]
[1724752185650,0.39038329,2678.0,2677.8,3.73432]
[1724752185848,5.66889969,2678.4,2677.8,3.73432]
[1724752186159,3.73387,2678.2,2677.6,5.9968]
[1724752186357,6.84134482,2678.4,2677.6,2.2622]
[1724752186600,3.7342,2678.0,2677.6,2.2622]
[1724752187341,3.73394,2678.2,2677.6,2.2622]
[1724752187342,3.73399,2678.1,2677.6,2.2622]
[1724752187583,3.73413,2678.0,2677.6,2.2622]
[1724752187789,3.73448,2677.8,2677.2,6.15893]
[1724752188095,3.7342,2678.0,2677.4,3.73495]
[1724752188385,3.0,2677.9,2677.7,3.73447]
[1724752188593,3.0,2678.3,2677.5,3.73474]
[1724752188748,3.73392,2678.2,2677.5,4.15303267]
[1724752189096,6.734,2678.1,2677.5,3.73473]
[1724752189243,3.0,2678.1,2677.4,2.4238]
[1724752189584,3.73414,2678.0,2677.5,3.7348]
[1724752189947,3.0,2677.9,2677.5,3.7348]
[1724752190483,3.73365,2678.4,2677.8,3.73433]
[1724752190689,3.73365,2678.4,2677.7,3.73441]
[1724752190690,3.73372,2678.3,2677.7,3.73441]
[1724752190895,3.0,2678.2,2677.7,7.46887]
[1724752191091,3.0,2678.2,2677.8,0.81594143]
[1724752191758,3.0,2678.2,2677.8,4.55034143]
[1724752191958,3.0,2678.2,2677.9,2.2556]
[1724752192171,3.0,2678.2,2677.7,3.80922238]
[1724752192477,3.0,2678.2,2677.7,5.01992579]
[1724752192648,3.0,2678.2,2677.9,2.2556]
[1724752192848,3.0,2678.2,2677.7,7.35652579]
[1724752193048,6.73385,2678.2,2677.7,7.35652579]
[1724752193357,3.0,2678.2,2677.7,7.35652579]
[1724752193562,3.0,2678.5,2677.7,7.35652579]
[1724752193756,3.0,2678.5,2677.7,11.09099579]
[1724752193757,3.73382,2678.3,2677.7,11.09099579]
[1724752193966,3.0,2678.2,2677.7,7.35652579]
[1724752194995,3.0,2678.2,2677.8,0.81033495]
[1724752195194,3.0,2678.3,2677.8,4.54470495]
[1724752195497,3.0,2678.3,2677.9,3.73413]
[1724752195793,6.73353,2678.5,2678.0,0.4544465]
[1724752196083,11.40364049,2678.6,2678.0,0.4544465]
[1724752196297,15.13702049,2678.6,2678.1,2.2831]
[1724752196604,15.13702049,2678.6,2678.0,0.4544465]
[1724752196605,3.73356,2678.5,2678.0,0.4544465]
[1724752196887,15.13707049,2678.6,2678.0,4.2632391]
[1724752197090,3.73345,2678.5,2678.0,0.5291191]
[1724752197257,3.73362,2678.4,2677.8,2.35778043]
[1724752197448,3.73393,2678.2,2677.8,2.35778043]
[1724752197888,3.73393,2678.2,2677.8,2.2831]
[1724752198099,3.73399,2678.1,2677.8,2.2831]
[1724752198337,3.73415,2678.0,2677.5,2.4096]
[1724752198447,3.73415,2678.0,2677.5,6.1444]
[1724752200048,3.73451,2677.8,2677.2,9.05785483]
[1724752200248,3.73451,2677.8,2677.3,3.80979329]
[1724752200489,3.73451,2677.8,2677.2,3.58901748]
[1724752200490,3.7345,2677.8,2677.2,3.66371074]
[1724752200649,3.7345,2677.8,2677.2,2.3097]
[1724752201064,3.73469,2677.6,2677.2,2.3097]
[1724752201262,3.7345,2677.8,2677.2,2.3097]
[1724752201478,3.7345,2677.8,2677.2,6.04493]
[1724752201479,3.73449,2677.8,2677.2,6.04493]
[1724752201685,3.73449,2677.8,2677.2,3.29519181]
[1724752201889,3.73456,2677.7,2677.2,3.29519181]
[1724752202392,3.7344,2677.9,2677.3,3.73502]
[1724752202691,3.73456,2677.7,2677.2,3.29519181]
[1724752202850,3.73456,2677.7,2677.2,2.3097]
[1724752203191,3.73472,2677.6,2677.2,2.3097]
[1724752203392,3.73472,2677.6,2676.9,6.74847483]
[1724752203696,3.73448,2677.8,2676.8,2.4889]
[1724752203697,3.7352,2677.3,2676.8,2.4889]
[1724752205386,3.73525,2677.2,2676.6,3.73607]
[1724752205590,3.7352,2677.3,2676.6,0.989391]
[1724752205787,3.73527,2677.2,2676.6,0.989391]
[1724752206009,3.73527,2677.2,2676.6,4.725441]
[1724752206815,3.73527,2677.2,2676.5,2.4217]
[1724752206816,3.73574,2676.9,2676.5,2.4217]
[1724752207396,3.73574,2676.9,2676.3,3.7364]
[1724752207397,7.4715,2676.9,2676.3,6.0761]
[1724752207617,3.73574,2676.9,2676.3,6.0761]
[1724752207908,3.0,2677.1,2676.4,0.07472425]
[1724752208112,3.0,2677.1,2676.8,3.73578]
[1724752208270,3.0,2677.3,2676.8,3.73578]
[1724752209297,3.0,2677.3,2676.9,6.07532]
[1724752209707,3.0,2677.3,2676.9,2.3397]
[1724752210693,3.0,2677.3,2676.9,6.0753]
[1724752211023,0.38838735,2677.2,2676.5,3.73613]
[1724752211226,3.73546,2677.1,2676.5,3.73613]
[1724752211382,3.73546,2677.1,2676.5,4.714236]
[1724752211583,3.73546,2677.1,2676.6,3.73603]
[1724752211825,3.73546,2677.1,2676.6,7.47203]
[1724752212118,3.73526,2677.2,2676.6,7.47198]
[1724752212418,3.7354,2677.1,2676.6,4.8118586]
[1724752212580,3.73553,2677.0,2676.4,6.04498]
[1724752213201,3.73569,2676.9,2676.4,6.04498]
[1724752213408,3.73569,2676.9,2676.4,2.3087]
[1724752214000,3.73569,2676.9,2676.4,6.04505]
[1724752214422,3.0,2677.1,2676.8,3.73577]
[1724752214627,3.0,2677.0,2676.8,3.73577]
[1724752214785,3.0,2677.1,2676.8,3.73577]
[1724752214984,3.0,2677.2,2676.8,3.73577]
[1724752215597,3.0,2677.2,2676.6,3.73602]
[1724752215598,3.0,2677.2,2676.6,3.73596]
[1724752215791,3.0,2677.2,2676.6,4.340432]
[1724752216116,3.0,2677.2,2676.7,3.73593]
[1724752216584,6.73527,2677.2,2676.6,8.076432]
[1724752216923,3.0,2677.2,2676.7,3.73592]
[1724752217134,3.0,2677.2,2676.9,2.492]
[1724752217339,6.73497,2677.4,2676.9,2.492]
[1724752218002,3.73512,2677.3,2676.9,2.492]
[1724752218189,5.3524,2677.4,2676.6,6.23018]
[1724752218528,3.73551,2677.1,2676.6,2.4942]
[1724752219101,3.73556,2677.0,2676.6,2.4942]
[1724752219823,3.73532,2677.2,2676.6,2.4942]
[1724752220044,3.73554,2677.0,2676.6,2.4942]
[1724752220333,7.47115,2677.0,2676.6,2.4942]
[1724752220629,3.73554,2677.0,2676.4,3.73628]
[1724752220948,3.73554,2677.0,2676.4,4.73733708]
[1724752221085,3.73554,2677.0,2676.4,4.73732708]
[1724752221282,3.73554,2677.0,2676.4,1.00105708]
[1724752221529,3.73575,2676.9,2676.4,1.00105708]
[1724752222025,3.73584,2676.8,2676.3,2.463]
[1724752222189,7.47175,2676.8,2676.3,2.463]
[1724752222388,3.73601,2676.7,2676.3,2.463]
[1724752222609,2.2564,2677.0,2676.0,6.12344]
[1724752222610,7.47234,2676.6,2676.0,6.12344]
[1724752222931,3.73616,2676.6,2676.0,6.56158943]
[1724752223093,3.73623,2676.5,2676.0,6.56158943]
[1724752223627,3.73616,2676.6,2676.0,6.56156943]
[1724752223923,3.73629,2676.5,2676.0,6.56156943]
[1724752224497,6.73586,2676.8,2676.1,2.96085694]
[1724752224727,3.73611,2676.6,2676.1,2.96085694]
[1724752224965,3.73611,2676.6,2675.8,4.38176434]
[1724752224966,3.73645,2676.4,2675.8,6.68644434]
[1724752225164,3.73644,2676.4,2675.8,6.68644434]
[1724752225365,7.47289,2676.4,2675.9,0.66864443]
[1724752225539,3.73644,2676.4,2675.9,0.66864443]
[1724752226073,7.47288,2676.4,2675.9,0.66864443]
[1724752226362,3.73657,2676.3,2675.8,2.3047]
[1724752228127,3.73657,2676.3,2675.5,6.119]
[1724752228438,3.73678,2676.1,2675.6,0.07474117]
[1724752228648,3.73678,2676.1,2675.5,3.05655848]
[1724752228837,3.73657,2676.3,2675.7,3.73725]
[1724752229440,7.47315,2676.3,2675.7,3.73725]
[1724752230887,3.73669,2676.2,2675.7,3.73725]
[1724752232383,3.73669,2676.2,2675.8,2.349]
[1724752232678,7.4732,2676.3,2675.7,3.73725]
[1724752233173,3.73657,2676.3,2675.7,7.47451]
[1724752233389,3.73657,2676.3,2675.7,3.73725]
[1724752233735,3.7367,2676.2,2675.7,3.73725]
[1724752233934,3.73678,2676.1,2675.5,6.08654]
[1724752234163,3.73678,2676.1,2675.6,3.73747]
[1724752234447,3.73665,2676.2,2675.7,3.7373]
[1724752236676,3.73679,2676.1,2675.6,3.73747]
[1724752236889,3.73679,2676.1,2675.5,6.695205]
[1724752237052,3.73679,2676.1,2675.5,6.695175]
[1724752237250,3.73679,2676.1,2675.6,3.73747]
[1724752237666,3.73679,2676.1,2675.5,6.695175]
[1724752238180,3.73679,2676.1,2675.6,3.73738]
[1724752238381,3.73679,2676.1,2675.6,4.4068975]
[1724752238587,3.73679,2676.1,2675.5,9.82404]
[1724752238881,3.73679,2676.1,2675.6,3.73746]
[1724752239057,3.73679,2676.1,2675.5,6.08652]
[1724752239252,3.73679,2676.1,2675.5,9.82405]
[1724752239486,3.73679,2676.1,2675.5,6.08652]
[1724752239714,3.73731,2675.8,2675.3,3.73778]
[1724752240198,3.73741,2675.7,2675.2,6.21024]
[1724752240374,3.0,2675.6,2675.2,6.21024]
[1724752241059,3.73762,2675.5,2675.2,2.4723]
[1724752242287,3.0,2675.6,2675.2,2.4723]
[1724752242288,3.0,2675.6,2675.4,3.73767]
[1724752242602,6.73721,2675.8,2675.2,10.19537]
[1724752242768,6.73721,2675.8,2675.2,6.2102]
[1724752243384,6.73721,2675.8,2675.3,3.73789]
[1724752243745,10.47449,2675.8,2675.2,6.2102]
[1724752243950,3.73737,2675.7,2675.2,6.2102]
[1724752244251,3.0,2675.6,2675.2,6.2102]
[1724752244684,3.0,2675.6,2675.2,2.4723]
[1724752245190,3.73762,2675.5,2675.2,2.4723]
[1724752245549,3.0,2675.6,2675.2,2.4723]
[1724752246052,6.7375,2675.6,2675.2,2.4723]
[1724752246778,3.0,2675.6,2675.2,6.21033]
[1724752246979,7.47487,2675.7,2675.2,6.21033]
[1724752247303,3.0,2675.6,2675.2,6.21033]
[1724752247879,3.0,2675.6,2675.3,3.73784]
[1724752248080,3.0,2675.8,2675.4,3.73765]
[1724752248264,4.12739177,2676.1,2675.7,2.2896]
[1724752248468,3.0,2676.0,2675.7,2.2896]
[1724752249599,6.73692,2676.0,2675.7,2.2896]
[1724752249756,3.73743,2675.7,2675.3,2.4037]
[1724752250106,3.73748,2675.6,2675.3,2.4037]
[1724752250393,3.73743,2675.7,2675.3,2.4037]
[1724752250394,7.4749,2675.7,2675.3,2.4037]
[1724752250757,3.73743,2675.7,2675.3,2.4037]
[1724752250961,3.7372,2675.8,2675.3,6.76318156]
[1724752251657,3.73737,2675.7,2675.3,3.02536156]
[1724752251858,3.73737,2675.7,2675.3,2.4037]
[1724752252089,3.73715,2675.9,2675.3,2.4037]
[1724752252299,3.73736,2675.7,2675.3,2.4037]
[1724752252811,3.73763,2675.5,2675.3,2.4037]
[1724752253097,7.47482,2675.7,2675.3,2.4037]
[1724752253591,3.7375,2675.6,2675.3,2.4037]
[1724752254393,3.73736,2675.7,2675.3,2.4037]
[1724752254767,7.4748,2675.7,2675.3,2.4037]
[1724752255295,3.73748,2675.6,2675.3,2.4037]
[1724752256371,3.73748,2675.6,2675.0,9.87420815]
[1724752256568,3.73748,2675.6,2675.1,0.67406218]
[1724752256998,5.66503341,2675.9,2675.1,0.67406218]
[1724752257182,3.73734,2675.7,2675.2,3.73794]
[1724752257555,3.73749,2675.6,2675.1,3.73817]
[1724752257776,3.73749,2675.6,2675.1,4.718108]
[1724752258298,7.4748,2675.7,2675.1,4.718108]
[1724752258675,3.73748,2675.6,2675.1,4.718108]
[1724752258877,3.73733,2675.8,2675.2,3.73802]
[1724752259196,6.7374,2675.7,2675.2,3.73802]
[1724752259358,3.73748,2675.6,2675.1,0.979938]
[1724752259554,3.73748,2675.6,2675.1,3.73816]
[1724752260159,3.73762,2675.5,2675.1,3.73816]
[1724752260799,7.47508,2675.6,2675.1,3.73816]
[1724752261104,7.47508,2675.6,2675.1,4.72559585]
[1724752261266,3.73748,2675.6,2675.1,4.72559585]
[1724752262421,3.73763,2675.5,2675.0,2.323]
[1724752262928,3.73782,2675.4,2675.0,2.323]
[1724752263097,7.47565,2675.4,2675.0,2.323]
[1724752263476,1.92970361,2675.6,2675.0,6.0613]
[1724752263477,5.66725361,2675.6,2675.0,6.0613]
[1724752263681,3.0,2675.7,2675.0,0.68090185]
[1724752263909,9.20970361,2676.0,2675.7,2.4581]
[1724752264125,7.28,2676.0,2675.8,3.73717]
[1724752264814,1.93193248,2676.4,2675.9,2.2865]
[1724752265019,1.93193248,2676.6,2676.0,4.14700179]
[1724752265180,1.93193248,2676.7,2676.2,3.73651]
[1724752265381,12.94777248,2676.8,2676.3,2.4498]
[1724752265619,12.94842996,2676.8,2676.3,2.4498]
[1724752265819,3.73595,2676.7,2676.3,2.4498]
[1724752266129,3.73612,2676.6,2676.3,2.4498]
[1724752266684,5.66870996,2676.6,2676.3,2.4498]
[1724752266887,5.66870996,2676.6,2676.1,2.4439]
[1724752267083,1.93258996,2676.4,2675.8,2.4439]
[1724752267287,5.66923996,2676.2,2675.8,2.4439]
[1724752267528,5.66936996,2676.1,2675.8,2.4439]
[1724752268639,5.66960996,2676.0,2675.3,2.3347]
[1724752268788,3.7373,2675.8,2675.3,2.3347]
[1724752268990,3.73734,2675.7,2675.3,2.3347]
[1724752269191,3.73734,2675.7,2675.1,2.3347]
[1724752269192,5.67016996,2675.6,2675.1,2.3347]
[1724752269624,9.40776996,2675.6,2675.1,2.3347]
[1724752269922,5.67113251,2675.6,2675.1,2.3347]
[1724752270154,3.73758,2675.6,2675.1,2.3347]
[1724752270284,5.67113251,2675.6,2675.1,2.3347]
[1724752270485,7.47518,2675.6,2675.1,2.3347]
[1724752270795,5.67113251,2675.6,2675.1,2.3347]
[1724752271031,1.93355251,2675.7,2675.1,6.68763693]
[1724752271313,4.93355251,2675.7,2675.1,6.68763693]
[1724752272353,3.0,2675.7,2675.3,2.4296]
[1724752272622,3.0,2675.7,2675.4,3.73774]
[1724752272795,1.93355251,2675.8,2675.4,3.73774]
[1724752272994,1.93355251,2675.8,2675.5,3.73761]
[1724752273197,4.93355251,2675.9,2675.6,2.4587]
[1724752273564,1.93355251,2676.0,2675.6,4.730875]
[1724752273688,4.93355251,2676.1,2675.7,2.4282]
[1724752274199,1.93355251,2676.1,2675.7,2.4282]
[1724752274602,5.67033251,2676.1,2675.7,2.4282]
[1724752274812,1.93355251,2676.1,2675.7,2.4282]
[1724752275014,1.93355251,2676.1,2675.7,3.05223216]
[1724752275213,1.93355251,2676.0,2675.7,2.4282]
[1724752275426,1.93355251,2675.9,2675.7,2.4282]
[1724752275628,5.67061251,2675.9,2675.7,2.4282]
[1724752275905,3.73701,2676.0,2675.4,6.09111577]
[1724752275906,9.40749251,2676.0,2675.4,6.09111577]
[1724752276210,3.73709,2675.9,2675.4,6.90727733]
[1724752276629,5.67048251,2676.0,2675.4,6.90727733]
[1724752276833,1.93355251,2675.9,2675.4,2.2787]
[1724752277140,3.73721,2675.8,2675.4,2.2787]
[1724752277754,7.47452,2675.8,2675.4,2.2787]
[1724752277898,5.67076251,2675.8,2675.4,2.2787]
[1724752278301,1.93355251,2675.8,2675.4,2.2787]
[1724752278511,3.73714,2675.9,2675.4,2.2787]
[1724752278512,5.67069251,2675.9,2675.4,2.2787]
[1724752278718,3.7372,2675.8,2675.4,2.2787]
[1724752278910,5.67075251,2675.8,2675.4,2.2787]
[1724752279115,9.40804251,2675.8,2675.4,2.2787]
[1724752279353,1.93522961,2675.7,2675.1,2.3953]
[1724752279548,1.17283055,2675.8,2675.1,2.3953]
[1724752279549,5.67283961,2675.6,2675.1,2.3953]
[1724752280149,3.73776,2675.4,2675.1,2.3953]
[1724752280847,1.93522961,2675.5,2675.1,2.3953]
[1724752281459,1.93522961,2675.5,2675.2,3.73796]
[1724752281950,1.93522961,2675.5,2675.1,2.3953]
[1724752282150,1.93522961,2675.5,2675.1,3.008648]
[1724752282548,1.93522961,2675.5,2675.2,3.73794]
[1724752282854,1.93522961,2675.6,2675.2,3.73794]
[1724752283053,1.93522961,2675.6,2675.3,2.3959]
[1724752283727,5.67272961,2675.6,2675.3,2.3959]
[1724752283926,5.67297073,2675.6,2675.3,2.3959]
[1724752284544,1.93547073,2675.5,2675.3,2.3959]
[1724752285128,1.93547073,2675.6,2675.3,2.3959]
[1724752285913,1.93547073,2675.6,2675.3,3.0167736]
[1724752286454,4.93547073,2675.7,2675.3,6.7546436]
[1724752286652,1.93547073,2675.7,2675.3,6.7546436]
[1724752287029,1.93547073,2675.6,2675.3,6.7546436]
[1724752288565,3.73735,2675.7,2675.3,6.7546436]
[1724752288773,1.93558615,2675.6,2675.3,6.7546436]
[1724752289473,5.67307615,2675.6,2675.3,2.3959]
[1724752289944,1.93558615,2675.6,2675.3,2.47065282]
[1724752290137,1.93558615,2675.8,2675.4,2.2634]
[1724752290389,1.93558615,2675.9,2675.5,3.81232547]
[1724752290676,5.67266615,2675.9,2675.6,0.63227908]
[1724752290876,5.67266615,2675.9,2675.4,6.24820528]
[1724752291660,5.67266615,2675.9,2675.4,6.32294858]
[1724752292564,5.67266615,2675.9,2675.4,2.51046528]
[1724752292775,5.67266615,2675.9,2675.4,2.2634]
[1724752292776,3.73734,2675.7,2675.4,2.2634]
[1724752293691,5.67283314,2675.8,2675.4,2.2634]
[1724752294869,1.93562314,2675.8,2675.4,2.2634]
[1724752295076,1.93562314,2675.8,2675.5,4.337736]
[1724752295461,1.93562314,2675.8,2675.6,3.73738]
[1724752295674,1.93562314,2675.9,2675.6,3.73738]
[1724752296279,1.93562314,2675.9,2675.7,2.3775]
[1724752296487,1.93562314,2675.9,2675.7,6.11482]
[1724752297316,1.93562314,2675.9,2675.7,7.16749002]
[1724752297622,1.93562314,2676.1,2675.9,2.4168]
[1724752297770,1.93562314,2676.3,2676.1,6.15344]
[1724752297970,1.93562314,2676.4,2676.2,3.73664]
[1724752298169,1.93562314,2676.5,2676.2,4.725596]
[1724752298402,1.93562314,2676.5,2676.2,0.989036]
[1724752299008,5.67185314,2676.5,2676.1,2.49152765]
[1724752299211,1.93562314,2676.4,2676.1,2.4168]
[1724752299512,3.73643,2676.4,2676.1,2.4168]
[1724752299718,2.87645145,2676.4,2675.4,6.07995]
[1724752299912,3.737,2676.0,2675.5,3.73761]
[1724752300211,3.73694,2676.0,2675.5,3.81234921]
[1724752300974,3.73694,2676.0,2675.6,2.3282]
[1724752301177,3.73707,2675.9,2675.6,2.3282]
[1724752301607,5.67269314,2675.9,2675.4,2.347]
[1724752301813,5.67269314,2675.9,2675.4,6.08474]
[1724752302172,1.93562314,2675.9,2675.5,3.7376]
[1724752302485,1.93476022,2675.9,2675.5,3.7376]
[1724752303897,1.93476022,2676.0,2675.7,3.7372]
[1724752304217,1.93476022,2676.1,2675.8,4.11083]
[1724752304673,4.93476022,2676.2,2675.9,2.3605]
[1724752305234,1.93476022,2676.2,2675.9,6.09748]
[1724752305514,4.93476022,2676.3,2675.9,6.09748]
[1724752305733,4.93476022,2676.3,2675.9,2.3605]
[1724752305875,8.67133022,2676.3,2675.9,2.3605]
[1724752306075,1.93476022,2676.2,2675.9,2.3605]
[1724752306587,4.93476022,2676.3,2675.9,2.3605]
[1724752306898,1.93476022,2676.3,2675.9,6.09753]
[1724752307103,1.93476022,2676.3,2675.9,2.3605]
[1724752307425,5.67142022,2676.2,2675.9,2.3605]
[1724752307979,3.73666,2676.2,2675.9,2.3605]
[1724752308414,5.67142022,2676.2,2675.9,2.3605]
[1724752308587,1.93476022,2676.1,2675.9,2.3605]
[1724752309019,1.93476022,2676.1,2675.7,2.4718]
[1724752309226,3.73695,2676.0,2675.7,2.4718]
[1724752309374,7.47397,2676.0,2675.7,2.4718]
[1724752309574,5.67171022,2676.0,2675.7,2.4718]
[1724752309810,6.61255324,2676.0,2675.4,6.11435]
[1724752310178,1.93476022,2675.9,2675.4,6.11435]
[1724752311218,5.67182022,2675.9,2675.4,6.11435]
[1724752311545,1.93476022,2675.8,2675.4,6.11435]
[1724752311716,1.93471336,2675.8,2675.4,6.11435]
[1724752312354,1.93471336,2675.8,2675.5,3.73755]
[1724752313410,1.93471336,2675.9,2675.5,3.73755]
[1724752313848,1.93471336,2675.9,2675.6,2.3868]
[1724752316447,1.93471336,2675.8,2675.6,2.3868]
[1724752316619,1.93546746,2675.8,2675.7,3.01292483]
[1724752317140,1.93546746,2675.9,2675.7,3.01292483]